[Event "*** Titled Tuesday 3|2 Blitz"]
[Site "Chess.com"]
[Date "2016.05.03"]
[Round "3"]
[White "ArnaudovP"]
[Black "Penguininja"]
[Result "0-1"]
[WhiteElo "2385"]
[BlackElo "2215"]
[TimeControl "180+2"]
[EndTime "17:42:06 PDT"]
[Termination "Penguininja won by resignation"]

1. e4 {[%clk 0:03:01.9]} 1... e5 {[%clk 0:02:57.7]} 2. Nf3 {[%clk 0:03:00.8]}
2... Nc6 {[%clk 0:02:57.3]} 3. Bc4 {[%clk 0:03:02.7]} 3... Bc5 {[%clk
0:02:53.3]} 4. d3 {[%clk 0:02:57]} 4... Nf6 {[%clk 0:02:52.6]} 5. O-O {[%clk
0:02:56.9]} 5... a6 {[%clk 0:02:46.8]} 6. Nbd2 {[%clk 0:02:49.4]} 6... Ba7
{[%clk 0:02:42.4]} 7. c3 {[%clk 0:02:42.1]} 7... d6 {[%clk 0:02:42.6]} 8. h3
{[%clk 0:02:34.1]} 8... O-O {[%clk 0:02:39.1]} 9. a4 {[%clk 0:02:33.8]} 9... Be6
{[%clk 0:02:37]} 10. b4 {[%clk 0:02:30.7]} 10... Qd7 {[%clk 0:02:35.6]} 11. Qe2
{[%clk 0:02:06.6]} 11... Rfe8 {[%clk 0:02:06.4]} 12. Bxe6 {[%clk 0:02:06.1]}
12... Qxe6 {[%clk 0:02:02.9]} 13. Nc4 {[%clk 0:02:02.8]} 13... d5 {[%clk
0:01:58.6]} 14. Ncd2 {[%clk 0:01:57.2]} 14... d4 {[%clk 0:01:52.1]} 15. cxd4
{[%clk 0:01:56.7]} 15... Nxd4 {[%clk 0:01:54]} 16. Nxd4 {[%clk 0:01:57.1]} 16...
Bxd4 {[%clk 0:01:55.3]} 17. Rb1 {[%clk 0:01:58.5]} 17... Nd7 {[%clk 0:01:46.1]}
18. Nf3 {[%clk 0:01:58.7]} 18... Ba7 {[%clk 0:01:44.3]} 19. Be3 {[%clk
0:01:58.6]} 19... Bxe3 {[%clk 0:01:39.2]} 20. fxe3 {[%clk 0:01:58.2]} 20... f6
{[%clk 0:01:38.9]} 21. Nh4 {[%clk 0:01:57.3]} 21... Nf8 {[%clk 0:01:35.2]} 22.
Nf5 {[%clk 0:01:58]} 22... Rad8 {[%clk 0:01:30.8]} 23. Qc2 {[%clk 0:01:56.4]}
23... Rd7 {[%clk 0:01:28.2]} 24. Rfd1 {[%clk 0:01:43.7]} 24... Red8 {[%clk
0:01:24.3]} 25. d4 {[%clk 0:01:39.5]} 25... exd4 {[%clk 0:01:22.6]} 26. exd4
{[%clk 0:01:39.5]} 26... g6 {[%clk 0:01:23.4]} 27. d5 {[%clk 0:01:37.2]} 27...
Qe5 {[%clk 0:01:18.4]} 28. Nh6+ {[%clk 0:01:37.7]} 28... Kg7 {[%clk 0:01:19.3]}
29. Ng4 {[%clk 0:01:38.5]} 29... Qd6 {[%clk 0:01:17.8]} 30. Rf1 {[%clk
0:01:38.2]} 30... Rf7 {[%clk 0:01:12.4]} 31. Qc3 {[%clk 0:01:38.7]} 31... Nd7
{[%clk 0:01:07.9]} 32. Rf2 {[%clk 0:01:34.5]} 32... h5 {[%clk 0:01:04.9]} 33.
Ne3 {[%clk 0:01:26]} 33... Ne5 {[%clk 0:01:04]} 34. Nc4 {[%clk 0:01:23.2]} 34...
Nxc4 {[%clk 0:01:02.7]} 35. Qxc4 {[%clk 0:01:24.1]} 35... Re8 {[%clk 0:01:04.3]}
36. Rbf1 {[%clk 0:01:22.6]} 36... Qe5 {[%clk 0:00:58.7]} 37. Rf4 {[%clk
0:01:17.4]} 37... g5 {[%clk 0:00:53.6]} 38. Rf5 {[%clk 0:01:18]} 38... Qxe4
{[%clk 0:00:54.8]} 39. Qc1 {[%clk 0:01:14.2]} 39... Qe3+ {[%clk 0:00:42.4]} 40.
Qxe3 {[%clk 0:01:14.3]} 40... Rxe3 {[%clk 0:00:44.3]} 41. Rc1 {[%clk 0:01:13.2]}
41... Re4 {[%clk 0:00:41.6]} 42. Rb1 {[%clk 0:01:12.5]} 42... Rd4 {[%clk
0:00:27.7]} 43. a5 {[%clk 0:01:12.7]} 43... Kg6 {[%clk 0:00:28.2]} 44. Rff1
{[%clk 0:01:11.8]} 44... Rxd5 {[%clk 0:00:29]} 45. Rfc1 {[%clk 0:01:12.2]} 45...
Re7 {[%clk 0:00:27.4]} 46. Rc4 {[%clk 0:01:07.2]} 46... c6 {[%clk 0:00:27.7]}
47. Rf1 {[%clk 0:01:06.4]} 47... Re2 {[%clk 0:00:27.5]} 48. Kh1 {[%clk
0:00:58.6]} 48... Rb2 {[%clk 0:00:25.4]} 49. Re4 {[%clk 0:00:57.8]} 49... Rdd2
{[%clk 0:00:22.3]} 50. Re6 {[%clk 0:00:50.6]} 50... Rf2 {[%clk 0:00:17.1]} 51.
Rxf2 {[%clk 0:00:51.3]} 51... Rxf2 {[%clk 0:00:19]} 52. Re7 {[%clk 0:00:52.5]}
52... Rf5 {[%clk 0:00:17]} 53. Rxb7 {[%clk 0:00:52.8]} 53... Rb5 {[%clk
0:00:18.6]} 54. Rb6 {[%clk 0:00:51.6]} 54... Kf5 {[%clk 0:00:10.7]} 55. Kh2
{[%clk 0:00:48.9]} 55... g4 {[%clk 0:00:11.1]} 56. Kg3 {[%clk 0:00:47.7]} 56...
Kg5 {[%clk 0:00:11.3]} 57. h4+ {[%clk 0:00:47.3]} 57... Kf5 {[%clk 0:00:10.8]}
58. Rxa6 {[%clk 0:00:40.5]} 58... Rxb4 {[%clk 0:00:09.9]} 59. Rxc6 {[%clk
0:00:42]} 59... Rb3+ {[%clk 0:00:11.5]} 60. Kh2 {[%clk 0:00:42.4]} 60... Ra3
{[%clk 0:00:13.1]} 61. Rc5+ {[%clk 0:00:42.3]} 61... Kf4 {[%clk 0:00:11.1]} 62.
Rc4+ {[%clk 0:00:28.4]} 62... Ke3 {[%clk 0:00:08.7]} 63. Rc5 {[%clk 0:00:28.2]}
63... Kf4 {[%clk 0:00:10.2]} 64. Rb5 {[%clk 0:00:27.3]} 64... Ra1 {[%clk
0:00:03.9]} 65. g3+ {[%clk 0:00:22.8]} 65... Ke3 {[%clk 0:00:04]} 66. Rb3+
{[%clk 0:00:22.4]} 66... Ke2 {[%clk 0:00:04.9]} 67. Rb6 {[%clk 0:00:20.4]} 67...
Rxa5 {[%clk 0:00:05.5]} 68. Rxf6 {[%clk 0:00:20.9]} 68... Ke3 {[%clk 0:00:07.1]}
69. Rf1 {[%clk 0:00:16.1]} 69... Ra2+ {[%clk 0:00:07.9]} 70. Kg1 {[%clk
0:00:16.8]} 70... Re2 {[%clk 0:00:09.1]} 71. Kh1 {[%clk 0:00:15.2]} 71... Rf2
{[%clk 0:00:09.7]} 72. Ra1 {[%clk 0:00:15]} 72... Kf3 {[%clk 0:00:10.2]} 73.
Ra3+ {[%clk 0:00:15.5]} 73... Ke4 {[%clk 0:00:10.8]} 74. Kg1 {[%clk 0:00:16.1]}
74... Rd2 {[%clk 0:00:11.5]} 75. Kf1 {[%clk 0:00:16.9]} 75... Rd3 {[%clk
0:00:08.6]} 76. Ra5 {[%clk 0:00:17.2]} 76... Kf3 {[%clk 0:00:06.3]} 77. Rf5+
{[%clk 0:00:14.3]} 77... Kxg3 {[%clk 0:00:07.6]} 78. Rxh5 {[%clk 0:00:15.6]}
78... Rd1+ {[%clk 0:00:08.9]} 79. Ke2 {[%clk 0:00:16.6]} 79... Rh1 {[%clk
0:00:10]} 80. Rh8 {[%clk 0:00:12.2]} 80... Rxh4 {[%clk 0:00:10.4]} 81. Rb8
{[%clk 0:00:13.2]} 81... Rh1 {[%clk 0:00:09.1]} 82. Rb4 {[%clk 0:00:08.7]} 82...
Ra1 {[%clk 0:00:08.9]} 83. Rb3+ {[%clk 0:00:08.3]} 83... Kh2 {[%clk 0:00:10.2]}
84. Kf2 {[%clk 0:00:08.1]} 84... Ra2+ {[%clk 0:00:11.5]} 85. Kf1 {[%clk
0:00:08.7]} 85... g3 {[%clk 0:00:12.7]} 86. Rb1 {[%clk 0:00:09.2]} 86... g2+
{[%clk 0:00:11.8]} 0-1

[Event "*** Titled Tuesday 3|2 Blitz"]
[Site "Chess.com"]
[Date "2016.05.03"]
[Round "4"]
[White "AlexanderL"]
[Black "jk13"]
[Result "1-0"]
[WhiteElo "2563"]
[BlackElo "2420"]
[TimeControl "180+2"]
[EndTime "17:45:14 PDT"]
[Termination "AlexanderL won by checkmate"]

1. d4 {[%clk 0:03:01.9]} 1... Nf6 {[%clk 0:03:01.5]} 2. Bg5 {[%clk 0:03:02.6]}
2... Ne4 {[%clk 0:03:01.3]} 3. Bf4 {[%clk 0:03:03.5]} 3... Nc6 {[%clk
0:03:02.9]} 4. e3 {[%clk 0:03:00.5]} 4... d5 {[%clk 0:03:03]} 5. Nd2 {[%clk
0:02:59.4]} 5... Bf5 {[%clk 0:03:02.7]} 6. Ngf3 {[%clk 0:02:59]} 6... e6 {[%clk
0:03:03.6]} 7. c3 {[%clk 0:02:58]} 7... Bd6 {[%clk 0:03:03.7]} 8. Bg3 {[%clk
0:02:57.9]} 8... O-O {[%clk 0:03:04]} 9. Nh4 {[%clk 0:02:57.2]} 9... Nxg3 {[%clk
0:02:56.6]} 10. hxg3 {[%clk 0:02:57.1]} 10... Bg6 {[%clk 0:02:55.7]} 11. Qg4
{[%clk 0:02:52.2]} 11... e5 {[%clk 0:02:52]} 12. Nxg6 {[%clk 0:02:50.2]} 12...
fxg6 {[%clk 0:02:51.1]} 13. Qe6+ {[%clk 0:02:48.5]} 13... Kh8 {[%clk 0:02:41.8]}
14. Qxg6 {[%clk 0:02:44.6]} 14... h6 {[%clk 0:02:42.9]} 15. Bd3 {[%clk 0:02:40]}
15... e4 {[%clk 0:02:41.9]} 16. Nxe4 {[%clk 0:02:40.6]} 16... Ne7 {[%clk
0:02:42.9]} 17. Rxh6+ {[%clk 0:02:33]} 17... gxh6 {[%clk 0:02:24.1]} 18. Qxh6+
{[%clk 0:02:34]} 18... Kg8 {[%clk 0:02:25.7]} 19. Ng5 {[%clk 0:02:28.2]} 19...
Rf7 {[%clk 0:02:23.2]} 20. Bh7+ {[%clk 0:02:27.7]} 20... Rxh7 {[%clk 0:02:19.4]}
21. Qxh7+ {[%clk 0:02:28.5]} 21... Kf8 {[%clk 0:02:21.1]} 22. Qf7# {[%clk
0:02:29.2]} 1-0

[Event "*** Titled Tuesday 3|2 Blitz"]
[Site "Chess.com"]
[Date "2016.05.03"]
[Round "4"]
[White "GMG"]
[Black "Checky2015"]
[Result "0-1"]
[WhiteElo "2431"]
[BlackElo "2604"]
[TimeControl "180+2"]
[EndTime "17:45:32 PDT"]
[Termination "Checky2015 won by resignation"]

1. d4 {[%clk 0:03:01.9]} 1... d5 {[%clk 0:03:00.9]} 2. Bg5 {[%clk 0:03:01]} 2...
h6 {[%clk 0:03:01.7]} 3. Bh4 {[%clk 0:03:01.8]} 3... c6 {[%clk 0:03:03]} 4. e3
{[%clk 0:03:02.7]} 4... Qb6 {[%clk 0:03:04.1]} 5. b3 {[%clk 0:03:03.8]} 5... e5
{[%clk 0:03:04.1]} 6. Nf3 {[%clk 0:03:04.1]} 6... e4 {[%clk 0:03:04.4]} 7. Nfd2
{[%clk 0:03:04.9]} 7... Ne7 {[%clk 0:03:04.3]} 8. Be2 {[%clk 0:02:53.6]} 8...
Nf5 {[%clk 0:03:05.4]} 9. Bg3 {[%clk 0:02:54.5]} 9... Nxg3 {[%clk 0:03:06.6]}
10. hxg3 {[%clk 0:02:53.3]} 10... Be7 {[%clk 0:03:07.7]} 11. c4 {[%clk
0:02:54.3]} 11... O-O {[%clk 0:03:08]} 12. Nc3 {[%clk 0:02:55.3]} 12... Be6
{[%clk 0:03:08.9]} 13. Qc2 {[%clk 0:02:55.9]} 13... f5 {[%clk 0:02:52.2]} 14. f4
{[%clk 0:02:49]} 14... Nd7 {[%clk 0:02:44.8]} 15. c5 {[%clk 0:02:49.4]} 15...
Qc7 {[%clk 0:02:39.1]} 16. Kf2 {[%clk 0:02:50.5]} 16... b6 {[%clk 0:02:39.4]}
17. b4 {[%clk 0:02:51.3]} 17... a5 {[%clk 0:02:39.6]} 18. a3 {[%clk 0:02:52]}
18... Ra7 {[%clk 0:02:32.1]} 19. Ra2 {[%clk 0:02:47.5]} 19... axb4 {[%clk
0:02:28.2]} 20. axb4 {[%clk 0:02:48.3]} 20... Rxa2 {[%clk 0:02:29.4]} 21. Qxa2
{[%clk 0:02:47.4]} 21... bxc5 {[%clk 0:02:29.4]} 22. bxc5 {[%clk 0:02:47.7]}
22... Nxc5 {[%clk 0:02:31.3]} 23. dxc5 {[%clk 0:02:48.2]} 23... Bxc5 {[%clk
0:02:33.2]} 24. Na4 {[%clk 0:02:21.6]} 24... Bxe3+ {[%clk 0:02:32.3]} 25. Ke1
{[%clk 0:02:21]} 25... Qa5 {[%clk 0:02:29.8]} 0-1

[Event "*** Titled Tuesday 3|2 Blitz"]
[Site "Chess.com"]
[Date "2016.05.03"]
[Round "4"]
[White "zane33"]
[Black "platy3"]
[Result "0-1"]
[WhiteElo "1986"]
[BlackElo "2644"]
[TimeControl "180+2"]
[EndTime "17:46:19 PDT"]
[Termination "platy3 won by checkmate"]

1. e4 {[%clk 0:03:01.9]} 1... c5 {[%clk 0:03:00.5]} 2. d4 {[%clk 0:03:02.2]}
2... cxd4 {[%clk 0:03:01.5]} 3. c3 {[%clk 0:03:03.7]} 3... Nf6 {[%clk 0:03:03]}
4. e5 {[%clk 0:03:04.4]} 4... Nd5 {[%clk 0:03:04.5]} 5. Nf3 {[%clk 0:03:05.6]}
5... e6 {[%clk 0:03:06.1]} 6. Bc4 {[%clk 0:03:03.5]} 6... Nb6 {[%clk 0:03:04.7]}
7. Bb3 {[%clk 0:03:04.1]} 7... Nc6 {[%clk 0:03:05.5]} 8. O-O {[%clk 0:03:04.4]}
8... d5 {[%clk 0:03:06.9]} 9. exd6 {[%clk 0:03:04.7]} 9... Bxd6 {[%clk
0:03:08.1]} 10. cxd4 {[%clk 0:03:03.5]} 10... O-O {[%clk 0:03:09.5]} 11. Nc3
{[%clk 0:03:01.5]} 11... h6 {[%clk 0:03:07.7]} 12. a3 {[%clk 0:02:43.5]} 12...
Ne7 {[%clk 0:03:06.8]} 13. Nb5 {[%clk 0:02:42.2]} 13... Bb8 {[%clk 0:03:06.6]}
14. Qe2 {[%clk 0:02:34.9]} 14... Nbd5 {[%clk 0:03:06.5]} 15. Rd1 {[%clk
0:02:29.6]} 15... Nf5 {[%clk 0:03:05.8]} 16. Qe4 {[%clk 0:02:22]} 16... Nf6
{[%clk 0:02:55.3]} 17. Qd3 {[%clk 0:02:18.9]} 17... Qb6 {[%clk 0:02:34.5]} 18.
Ne5 {[%clk 0:02:10.9]} 18... a6 {[%clk 0:02:30.1]} 19. Nc3 {[%clk 0:01:48.5]}
19... Qxb3 {[%clk 0:02:28.5]} 20. Qh3 {[%clk 0:01:34.4]} 20... Ne4 {[%clk
0:02:17.2]} 21. Rd3 {[%clk 0:01:31.7]} 21... Nxc3 {[%clk 0:02:16.4]} 22. Rxc3
{[%clk 0:01:31.5]} 22... Qd1# {[%clk 0:02:16.9]} 0-1

[Event "*** Titled Tuesday 3|2 Blitz"]
[Site "Chess.com"]
[Date "2016.05.03"]
[Round "4"]
[White "vinceyoung15"]
[Black "GrigorGrigorov"]
[Result "0-1"]
[WhiteElo "2209"]
[BlackElo "2526"]
[TimeControl "180+2"]
[EndTime "17:47:23 PDT"]
[Termination "GrigorGrigorov won by resignation"]

1. e4 {[%clk 0:03:01.9]} 1... e5 {[%clk 0:03:00.4]} 2. Nf3 {[%clk 0:02:56.1]}
2... Nc6 {[%clk 0:03:01.4]} 3. Bb5 {[%clk 0:02:56.9]} 3... Nf6 {[%clk
0:03:02.1]} 4. d3 {[%clk 0:02:58]} 4... Bc5 {[%clk 0:03:01.9]} 5. c3 {[%clk
0:02:56.8]} 5... O-O {[%clk 0:02:54.7]} 6. Nbd2 {[%clk 0:02:55.6]} 6... d6
{[%clk 0:02:53.9]} 7. Nf1 {[%clk 0:02:56.2]} 7... Ne7 {[%clk 0:02:50.9]} 8. Ng3
{[%clk 0:02:55.6]} 8... Ng6 {[%clk 0:02:51.5]} 9. d4 {[%clk 0:02:55.2]} 9... Bb6
{[%clk 0:02:51.2]} 10. O-O {[%clk 0:02:55]} 10... Bg4 {[%clk 0:02:38.1]} 11. Be3
{[%clk 0:02:44.7]} 11... a6 {[%clk 0:02:00.9]} 12. Ba4 {[%clk 0:02:37.4]} 12...
Nh4 {[%clk 0:01:55.7]} 13. dxe5 {[%clk 0:02:24.4]} 13... Bxf3 {[%clk 0:01:53.2]}
14. gxf3 {[%clk 0:02:23.6]} 14... dxe5 {[%clk 0:01:53.2]} 15. Qxd8 {[%clk
0:02:05.9]} 15... Raxd8 {[%clk 0:01:49.2]} 16. f4 {[%clk 0:02:06.8]} 16... Bxe3
{[%clk 0:01:40.3]} 17. fxe3 {[%clk 0:02:02]} 17... Ng4 {[%clk 0:01:41.8]} 18.
Rae1 {[%clk 0:01:41.3]} 18... Rd2 {[%clk 0:01:36.6]} 19. fxe5 {[%clk 0:01:17.8]}
19... Rg2+ {[%clk 0:01:32.8]} 20. Kh1 {[%clk 0:01:18.7]} 20... Rxh2+ {[%clk
0:01:33.9]} 21. Kg1 {[%clk 0:01:19.8]} 21... Rg2+ {[%clk 0:01:35.1]} 22. Kh1
{[%clk 0:01:21.2]} 22... Rxg3 {[%clk 0:01:35.8]} 23. Bb3 {[%clk 0:01:14.6]}
23... Nxe5 {[%clk 0:01:35.5]} 0-1

[Event "*** Titled Tuesday 3|2 Blitz"]
[Site "Chess.com"]
[Date "2016.05.03"]
[Round "4"]
[White "Boryboy"]
[Black "howitzer14"]
[Result "1/2-1/2"]
[WhiteElo "2528"]
[BlackElo "2237"]
[TimeControl "180+2"]
[EndTime "17:48:47 PDT"]
[Termination "Game drawn by repetition"]

1. d4 {[%clk 0:03:01.9]} 1... Nf6 {[%clk 0:02:59.8]} 2. Nf3 {[%clk 0:03:02.4]}
2... g6 {[%clk 0:03:01.1]} 3. g3 {[%clk 0:03:03]} 3... Bg7 {[%clk 0:03:02.6]} 4.
Bg2 {[%clk 0:03:04.6]} 4... d5 {[%clk 0:03:04.2]} 5. O-O {[%clk 0:03:05.6]} 5...
O-O {[%clk 0:03:05.5]} 6. c3 {[%clk 0:03:06.5]} 6... b6 {[%clk 0:03:04.6]} 7. a4
{[%clk 0:03:05.6]} 7... Bb7 {[%clk 0:03:03.8]} 8. a5 {[%clk 0:03:06.8]} 8... c5
{[%clk 0:03:03.6]} 9. Bf4 {[%clk 0:03:05.8]} 9... e6 {[%clk 0:03:04.2]} 10. Qc1
{[%clk 0:03:06.4]} 10... Qe7 {[%clk 0:02:59.1]} 11. Bh6 {[%clk 0:03:05.9]} 11...
Rc8 {[%clk 0:02:59.9]} 12. Bxg7 {[%clk 0:03:05.5]} 12... Kxg7 {[%clk 0:03:01.6]}
13. Qf4 {[%clk 0:03:05.3]} 13... Nbd7 {[%clk 0:03:01]} 14. a6 {[%clk 0:03:04]}
14... Bc6 {[%clk 0:03:01.4]} 15. Nbd2 {[%clk 0:03:02.7]} 15... Bb5 {[%clk
0:02:57]} 16. Rfe1 {[%clk 0:03:03.1]} 16... cxd4 {[%clk 0:02:57.6]} 17. cxd4
{[%clk 0:02:59.4]} 17... Rc2 {[%clk 0:02:54.1]} 18. b3 {[%clk 0:02:47.3]} 18...
Rac8 {[%clk 0:02:54.6]} 19. e4 {[%clk 0:02:47.8]} 19... dxe4 {[%clk 0:02:54.8]}
20. Nxe4 {[%clk 0:02:49.2]} 20... Nxe4 {[%clk 0:02:47.7]} 21. Rxe4 {[%clk
0:02:50]} 21... Nf6 {[%clk 0:02:42.9]} 22. Ree1 {[%clk 0:02:50.7]} 22... Nd5
{[%clk 0:02:43.1]} 23. Qe5+ {[%clk 0:02:51.3]} 23... Qf6 {[%clk 0:02:44]} 24. h4
{[%clk 0:02:13.3]} 24... h6 {[%clk 0:02:43.2]} 25. Qxf6+ {[%clk 0:02:05]} 25...
Kxf6 {[%clk 0:02:44.1]} 26. Ne5 {[%clk 0:02:06.7]} 26... Rd2 {[%clk 0:02:41.5]}
27. Ng4+ {[%clk 0:01:55]} 27... Kg7 {[%clk 0:02:41.8]} 28. Bxd5 {[%clk
0:01:56.6]} 28... exd5 {[%clk 0:02:43.1]} 29. Re7 {[%clk 0:01:58.2]} 29... Rcc2
{[%clk 0:02:05.9]} 30. Rxa7 {[%clk 0:01:51.9]} 30... h5 {[%clk 0:02:01.8]} 31.
Ne3 {[%clk 0:01:51.2]} 31... Ra2 {[%clk 0:02:01.8]} 32. Rxa2 {[%clk 0:01:51.9]}
32... Rxa2 {[%clk 0:02:03.2]} 33. f4 {[%clk 0:01:32.7]} 33... Ra1+ {[%clk
0:01:56.5]} 34. Kf2 {[%clk 0:01:32.9]} 34... Ra2+ {[%clk 0:01:58.2]} 35. Kg1
{[%clk 0:01:31.7]} 35... Ra1+ {[%clk 0:01:59.3]} 36. Kg2 {[%clk 0:01:32.9]}
36... Bxa6 {[%clk 0:01:51]} 37. Kh2 {[%clk 0:01:21.3]} 37... Ra2+ {[%clk
0:01:47.2]} 38. Kg1 {[%clk 0:01:22]} 38... Ra1+ {[%clk 0:01:48.2]} 39. Kf2
{[%clk 0:01:14]} 39... Ra2+ {[%clk 0:01:48.2]} 40. Kg1 {[%clk 0:01:14.7]} 40...
Ra1+ {[%clk 0:01:40.2]} 41. Kf2 {[%clk 0:01:14.3]} 41... Ra2+ {[%clk 0:01:41.4]}
42. Kg1 {[%clk 0:01:15.7]} 1/2-1/2

[Event "*** Titled Tuesday 3|2 Blitz"]
[Site "Chess.com"]
[Date "2016.05.03"]
[Round "4"]
[White "Newlight1"]
[Black "GeorgMeier"]
[Result "0-1"]
[WhiteElo "2245"]
[BlackElo "2746"]
[TimeControl "180+2"]
[EndTime "17:49:17 PDT"]
[Termination "GeorgMeier won by resignation"]

1. e4 {[%clk 0:02:54.5]} 1... e6 {[%clk 0:03:01.3]} 2. d4 {[%clk 0:02:53.7]}
2... d5 {[%clk 0:03:01.4]} 3. Nd2 {[%clk 0:02:54.8]} 3... dxe4 {[%clk
0:03:02.6]} 4. Nxe4 {[%clk 0:02:54.6]} 4... Nd7 {[%clk 0:03:04.5]} 5. Nf3 {[%clk
0:02:55.6]} 5... Ngf6 {[%clk 0:03:06.4]} 6. Bd3 {[%clk 0:02:54.9]} 6... c5
{[%clk 0:03:07.3]} 7. Nxf6+ {[%clk 0:02:48]} 7... Nxf6 {[%clk 0:03:09.2]} 8. c3
{[%clk 0:02:49.2]} 8... cxd4 {[%clk 0:03:09]} 9. cxd4 {[%clk 0:02:49.9]} 9...
Bb4+ {[%clk 0:03:08.4]} 10. Bd2 {[%clk 0:02:50.5]} 10... Bxd2+ {[%clk 0:03:04]}
11. Qxd2 {[%clk 0:02:52.4]} 11... O-O {[%clk 0:03:05.3]} 12. O-O {[%clk
0:02:52.9]} 12... b6 {[%clk 0:02:55.2]} 13. Rac1 {[%clk 0:02:07.9]} 13... Bb7
{[%clk 0:02:52]} 14. Ne5 {[%clk 0:02:01.4]} 14... Qd5 {[%clk 0:02:44.3]} 15. Nf3
{[%clk 0:01:52]} 15... Rac8 {[%clk 0:02:37.6]} 16. Rxc8 {[%clk 0:01:46.9]} 16...
Rxc8 {[%clk 0:02:38.2]} 17. Rc1 {[%clk 0:01:48.3]} 17... Rxc1+ {[%clk
0:02:37.7]} 18. Qxc1 {[%clk 0:01:48]} 18... Qd6 {[%clk 0:02:39.1]} 19. Qe3
{[%clk 0:01:41.3]} 19... h6 {[%clk 0:02:22.1]} 20. h3 {[%clk 0:01:40.3]} 20...
Kf8 {[%clk 0:02:01.3]} 21. Qe5 {[%clk 0:01:37.5]} 21... Ke7 {[%clk 0:02:00]} 22.
Nd2 {[%clk 0:01:27.6]} 22... g5 {[%clk 0:01:47]} 23. Nc4 {[%clk 0:01:26]} 23...
Qxe5 {[%clk 0:01:44.6]} 24. dxe5 {[%clk 0:01:27.9]} 24... Nd7 {[%clk 0:01:45.5]}
25. g3 {[%clk 0:01:24.1]} 25... b5 {[%clk 0:01:40.2]} 26. Nd6 {[%clk 0:01:22.9]}
26... Nxe5 {[%clk 0:01:39.8]} 27. Nxb7 {[%clk 0:01:14.3]} 27... Nxd3 {[%clk
0:01:33.7]} 28. b3 {[%clk 0:01:14.3]} 28... Nc1 {[%clk 0:01:28.3]} 29. a4 {[%clk
0:01:14.2]} 29... Nxb3 {[%clk 0:01:28.2]} 30. axb5 {[%clk 0:01:14.8]} 30... Nd4
{[%clk 0:01:29.5]} 31. Na5 {[%clk 0:01:13.1]} 31... Nxb5 {[%clk 0:01:29.6]} 32.
Kg2 {[%clk 0:01:13.2]} 32... Kd6 {[%clk 0:01:30.8]} 33. Kf3 {[%clk 0:01:13.4]}
33... f5 {[%clk 0:01:29.6]} 34. g4 {[%clk 0:01:09.4]} 34... Kc5 {[%clk
0:01:30.3]} 35. Ke3 {[%clk 0:00:54.1]} 35... Nd6 {[%clk 0:01:30.9]} 36. Nb3+
{[%clk 0:00:51.9]} 36... Kd5 {[%clk 0:01:31.4]} 37. Nd2 {[%clk 0:00:45.6]} 37...
Nc4+ {[%clk 0:01:32]} 0-1

[Event "*** Titled Tuesday 3|2 Blitz"]
[Site "Chess.com"]
[Date "2016.05.03"]
[Round "4"]
[White "MinhGTrAn"]
[Black "viktorskliarov"]
[Result "1-0"]
[WhiteElo "2619"]
[BlackElo "2448"]
[TimeControl "180+2"]
[EndTime "17:49:52 PDT"]
[Termination "MinhGTrAn won by resignation"]

1. d4 {[%clk 0:03:01.9]} 1... Nf6 {[%clk 0:03:00.5]} 2. c4 {[%clk 0:03:02.9]}
2... e6 {[%clk 0:03:01.9]} 3. Nc3 {[%clk 0:03:01.8]} 3... Bb4 {[%clk 0:03:02.3]}
4. e3 {[%clk 0:03:03]} 4... b6 {[%clk 0:03:03.3]} 5. Ne2 {[%clk 0:03:04.1]} 5...
Ne4 {[%clk 0:03:04.3]} 6. f3 {[%clk 0:03:05.3]} 6... Nxc3 {[%clk 0:03:04.3]} 7.
bxc3 {[%clk 0:03:02.3]} 7... Bd6 {[%clk 0:03:05.1]} 8. e4 {[%clk 0:02:34.7]}
8... c5 {[%clk 0:03:05.4]} 9. e5 {[%clk 0:02:19.9]} 9... Bc7 {[%clk 0:03:04.6]}
10. Ng3 {[%clk 0:02:21.5]} 10... d6 {[%clk 0:03:01.4]} 11. Bd3 {[%clk
0:02:18.7]} 11... Bb7 {[%clk 0:02:57.2]} 12. d5 {[%clk 0:02:16.5]} 12... dxe5
{[%clk 0:02:40]} 13. dxe6 {[%clk 0:02:15.7]} 13... fxe6 {[%clk 0:02:40.3]} 14.
O-O {[%clk 0:02:16.9]} 14... O-O {[%clk 0:02:40.2]} 15. Qc2 {[%clk 0:02:15]}
15... Qh4 {[%clk 0:02:39.9]} 16. Be4 {[%clk 0:02:09.3]} 16... Bxe4 {[%clk
0:02:32.5]} 17. Nxe4 {[%clk 0:02:11.2]} 17... Nc6 {[%clk 0:02:25.7]} 18. Bg5
{[%clk 0:02:12.2]} 18... Qh5 {[%clk 0:02:26.6]} 19. Rad1 {[%clk 0:02:06.6]}
19... h6 {[%clk 0:02:27]} 20. Be3 {[%clk 0:02:03.5]} 20... Rad8 {[%clk
0:02:26.8]} 21. Rxd8 {[%clk 0:01:45.9]} 21... Rxd8 {[%clk 0:02:26.5]} 22. Rd1
{[%clk 0:01:47.8]} 22... Qe8 {[%clk 0:02:20.2]} 23. Bxh6 {[%clk 0:01:42.3]}
23... Rxd1+ {[%clk 0:01:59.5]} 24. Qxd1 {[%clk 0:01:44.2]} 24... Na5 {[%clk
0:02:00.1]} 25. Qc2 {[%clk 0:01:31.5]} 25... Nxc4 {[%clk 0:01:43.3]} 26. Ng5
{[%clk 0:01:32.3]} 26... g6 {[%clk 0:01:31.6]} 27. Qe4 {[%clk 0:01:32.5]} 27...
b5 {[%clk 0:01:24.7]} 28. Qb7 {[%clk 0:01:31.1]} 28... Qd7 {[%clk 0:01:16.1]}
29. Qa8+ {[%clk 0:01:28.8]} 29... Bd8 {[%clk 0:01:10.8]} 30. Nxe6 {[%clk
0:01:19.1]} 30... Qxe6 {[%clk 0:00:58.5]} 31. Qxd8+ {[%clk 0:01:21]} 31... Kh7
{[%clk 0:00:55.1]} 32. Bf8 {[%clk 0:01:20.9]} 32... Nb6 {[%clk 0:00:21.8]} 33.
Bxc5 {[%clk 0:01:19.2]} 33... Qxa2 {[%clk 0:00:19.9]} 34. Qe7+ {[%clk
0:01:11.5]} 34... Kh6 {[%clk 0:00:20.3]} 35. Be3+ {[%clk 0:01:11.9]} 1-0